[Event "Late-Titled-Tuesday-Blitz-December-26-2023"]
[Site "Chess.com"]
[Date "2023.12.26"]
[Round "11"]
[White "chessajedrezz2020"]
[Black "Felix-Rose"]
[Result "1-0"]
[WhiteElo "2743"]
[BlackElo "2246"]
[TimeControl "180+1"]
[EndTime "16:03:49 PST"]
[Termination "chessajedrezz2020 won on time"]

1. Nf3 {[%clk 0:02:56.8]} 1... Nf6 {[%clk 0:02:58.9]} 2. g3 {[%clk 0:02:54.7]}
2... d5 {[%clk 0:02:55.7]} 3. Bg2 {[%clk 0:02:55.1]} 3... g6 {[%clk 0:02:56]} 4.
O-O {[%clk 0:02:55.4]} 4... Bg7 {[%clk 0:02:56.4]} 5. d3 {[%clk 0:02:56.3]} 5...
O-O {[%clk 0:02:56.8]} 6. Nbd2 {[%clk 0:02:57.2]} 6... Nc6 {[%clk 0:02:56]} 7.
e4 {[%clk 0:02:57.8]} 7... dxe4 {[%clk 0:02:53.7]} 8. dxe4 {[%clk 0:02:58.3]}
8... e5 {[%clk 0:02:53.6]} 9. c3 {[%clk 0:02:55.7]} 9... a5 {[%clk 0:02:51.5]}
10. Qc2 {[%clk 0:02:52.1]} 10... Be6 {[%clk 0:02:48.8]} 11. Ng5 {[%clk
0:02:50.3]} 11... Bg4 {[%clk 0:02:43.6]} 12. Ngf3 {[%clk 0:02:23.6]} 12... Bxf3
{[%clk 0:02:26.7]} 13. Bxf3 {[%clk 0:02:22.9]} 13... Qd7 {[%clk 0:02:25]} 14.
Nc4 {[%clk 0:02:20.3]} 14... Rfd8 {[%clk 0:02:19.7]} 15. a4 {[%clk 0:01:56.2]}
15... h6 {[%clk 0:01:58.3]} 16. Kg2 {[%clk 0:01:52]} 16... Qd3 {[%clk 0:01:56]}
17. Qb3 {[%clk 0:01:44.5]} 17... Nxe4 {[%clk 0:01:38]} 18. Rd1 {[%clk 0:01:36]}
18... Nc5 {[%clk 0:01:37.9]} 19. Qb5 {[%clk 0:01:30.6]} 19... Qc2 {[%clk
0:00:30.7]} 20. Ne3 {[%clk 0:01:13.9]} 20... Qb3 {[%clk 0:00:20.2]} 21. Qxc5
{[%clk 0:01:13.3]} 21... e4 {[%clk 0:00:16.3]} 22. Be2 {[%clk 0:01:07.7]} 22...
Bf8 {[%clk 0:00:15.6]} 23. Qb5 {[%clk 0:00:56.2]} 23... Qe6 {[%clk 0:00:15.7]}
24. Bc4 {[%clk 0:00:55.1]} 24... Qf6 {[%clk 0:00:12.7]} 25. Be2 {[%clk
0:00:47.3]} 25... Rxd1 {[%clk 0:00:12.4]} 26. Nxd1 {[%clk 0:00:47.3]} 26... Rd8
{[%clk 0:00:12.7]} 27. Be3 {[%clk 0:00:38.8]} 27... Ne5 {[%clk 0:00:12.6]} 28.
Bd4 {[%clk 0:00:32.1]} 28... Bd6 {[%clk 0:00:11.6]} 29. Qxb7 {[%clk 0:00:29.7]}
29... Qf5 {[%clk 0:00:09]} 30. Ne3 {[%clk 0:00:25.7]} 30... Qe6 {[%clk
0:00:07.4]} 31. Qxe4 {[%clk 0:00:21.4]} 31... Nd7 {[%clk 0:00:01.8]} 32. Qxe6
{[%clk 0:00:21.2]} 32... fxe6 {[%clk 0:00:02.7]} 33. Bc4 {[%clk 0:00:20]} 33...
Kf7 {[%clk 0:00:01.8]} 34. Re1 {[%clk 0:00:20.6]} 34... c5 {[%clk 0:00:01.5]}
35. Nc2 {[%clk 0:00:17.1]} 35... cxd4 {[%clk 0:00:02]} 36. Rxe6 {[%clk
0:00:17.7]} 36... Nb6 {[%clk 0:00:01.2]} 37. Rxd6+ {[%clk 0:00:16.8]} 37... Nxc4
{[%clk 0:00:01.8]} 38. Rxd8 {[%clk 0:00:16.9]} 38... Nxb2 {[%clk 0:00:02.2]} 39.
Rxd4 {[%clk 0:00:17.5]} 39... Nxa4 {[%clk 0:00:02.8]} 40. Rxa4 {[%clk
0:00:17.1]} 40... h5 {[%clk 0:00:03.7]} 41. Rxa5 {[%clk 0:00:18]} 41... Kg7
{[%clk 0:00:04.5]} 42. h4 {[%clk 0:00:17.9]} 42... Kh6 {[%clk 0:00:05.4]} 43. f4
{[%clk 0:00:18]} 43... g5 {[%clk 0:00:05.9]} 44. Rxg5 {[%clk 0:00:18.1]} 44...
Kh7 {[%clk 0:00:06.4]} 45. c4 {[%clk 0:00:19]} 45... Kh6 {[%clk 0:00:06.7]} 46.
c5 {[%clk 0:00:19.9]} 46... Kh7 {[%clk 0:00:07.3]} 47. c6 {[%clk 0:00:20.8]}
47... Kh6 {[%clk 0:00:06.7]} 48. c7 {[%clk 0:00:21.7]} 48... Kh7 {[%clk
0:00:07.2]} 49. c8=Q {[%clk 0:00:22.6]} 1-0

[Event "Late-Titled-Tuesday-Blitz-December-26-2023"]
[Site "Chess.com"]
[Date "2023.12.26"]
[Round "11"]
[White "BogdanDeac"]
[Black "sheldons73tshirt"]
[Result "1-0"]
[WhiteElo "3009"]
[BlackElo "2685"]
[TimeControl "180+1"]
[EndTime "16:03:56 PST"]
[Termination "BogdanDeac won by checkmate"]

1. b3 {[%clk 0:03:00.9]} 1... d5 {[%clk 0:02:58.8]} 2. Bb2 {[%clk 0:03:01.8]}
2... Nf6 {[%clk 0:02:57]} 3. e3 {[%clk 0:03:01.8]} 3... g6 {[%clk 0:02:57.3]} 4.
Bxf6 {[%clk 0:02:58.8]} 4... exf6 {[%clk 0:02:54.2]} 5. d4 {[%clk 0:02:59.4]}
5... c6 {[%clk 0:02:53.6]} 6. g3 {[%clk 0:02:58.6]} 6... h5 {[%clk 0:02:53.1]}
7. h4 {[%clk 0:02:58.1]} 7... Bd6 {[%clk 0:02:50.5]} 8. Bg2 {[%clk 0:02:58.2]}
8... Bf5 {[%clk 0:02:47.3]} 9. Ne2 {[%clk 0:02:57.1]} 9... Nd7 {[%clk
0:02:46.7]} 10. c4 {[%clk 0:02:57.2]} 10... dxc4 {[%clk 0:02:46.6]} 11. bxc4
{[%clk 0:02:58.1]} 11... Kf8 {[%clk 0:02:38.8]} 12. Nbc3 {[%clk 0:02:44.3]}
12... Kg7 {[%clk 0:02:36.6]} 13. e4 {[%clk 0:02:43.2]} 13... Bg4 {[%clk
0:02:29.9]} 14. f3 {[%clk 0:02:43]} 14... Qc7 {[%clk 0:02:00.2]} 15. e5 {[%clk
0:02:29.8]} 15... fxe5 {[%clk 0:01:51.3]} 16. fxg4 {[%clk 0:02:30]} 16... exd4
{[%clk 0:01:51.1]} 17. Qxd4+ {[%clk 0:02:29.6]} 17... Be5 {[%clk 0:01:50.7]} 18.
Qf2 {[%clk 0:02:29.7]} 18... Nf6 {[%clk 0:01:40]} 19. gxh5 {[%clk 0:02:23.2]}
19... Nxh5 {[%clk 0:01:24.4]} 20. Rh3 {[%clk 0:01:48.9]} 20... Rhe8 {[%clk
0:01:08.7]} 21. O-O-O {[%clk 0:01:44.3]} 21... Nf6 {[%clk 0:00:56.1]} 22. h5
{[%clk 0:01:37.4]} 22... Qa5 {[%clk 0:00:50.2]} 23. h6+ {[%clk 0:01:28.8]} 23...
Kh8 {[%clk 0:00:45.2]} 24. g4 {[%clk 0:01:22.7]} 24... Re7 {[%clk 0:00:32.5]}
25. Qf3 {[%clk 0:01:18.6]} 25... Rae8 {[%clk 0:00:30.6]} 26. g5 {[%clk
0:00:55.1]} 26... Nh7 {[%clk 0:00:30.1]} 27. Qg4 {[%clk 0:00:50.8]} 27... Qa3+
{[%clk 0:00:20.6]} 28. Kc2 {[%clk 0:00:50.5]} 28... Qb4 {[%clk 0:00:17.4]} 29.
Rhd3 {[%clk 0:00:42.2]} 29... a5 {[%clk 0:00:16.7]} 30. Rd8 {[%clk 0:00:40.5]}
30... Qb6 {[%clk 0:00:16.4]} 31. Rxe8+ {[%clk 0:00:40]} 31... Rxe8 {[%clk
0:00:17.3]} 32. Rd7 {[%clk 0:00:32.9]} 32... Qf2 {[%clk 0:00:15.2]} 33. Qf3
{[%clk 0:00:26.3]} 33... Qxf3 {[%clk 0:00:15.3]} 34. Bxf3 {[%clk 0:00:27.2]}
34... Nxg5 {[%clk 0:00:15.7]} 35. Bg2 {[%clk 0:00:27.8]} 35... Kh7 {[%clk
0:00:14.9]} 36. Rxb7 {[%clk 0:00:20.5]} 36... Kxh6 {[%clk 0:00:15.5]} 37. Bxc6
{[%clk 0:00:20.8]} 37... Rc8 {[%clk 0:00:16.1]} 38. Bd5 {[%clk 0:00:21.1]} 38...
f5 {[%clk 0:00:16.6]} 39. Nd1 {[%clk 0:00:19.1]} 39... f4 {[%clk 0:00:15.7]} 40.
Nf2 {[%clk 0:00:18.5]} 40... Kh5 {[%clk 0:00:12.3]} 41. Kd3 {[%clk 0:00:13.7]}
41... Kh4 {[%clk 0:00:12.3]} 42. Ne4 {[%clk 0:00:10.2]} 42... f3 {[%clk
0:00:11.9]} 43. N2c3 {[%clk 0:00:05.7]} 43... Nxe4 {[%clk 0:00:10.5]} 44. Nxe4
{[%clk 0:00:05.1]} 44... Rd8 {[%clk 0:00:08]} 45. Ke3 {[%clk 0:00:04]} 45... Kg4
{[%clk 0:00:08.7]} 46. Nf2+ {[%clk 0:00:03.9]} 46... Kg3 {[%clk 0:00:08.6]} 47.
Nh1+ {[%clk 0:00:03.7]} 47... Kg2 {[%clk 0:00:08.8]} 48. Bxf3+ {[%clk 0:00:04]}
48... Kh3 {[%clk 0:00:09.3]} 49. Bd5 {[%clk 0:00:04.3]} 49... Kg4 {[%clk
0:00:08.7]} 50. Nf2+ {[%clk 0:00:03.7]} 50... Kg3 {[%clk 0:00:08.6]} 51. Ne4+
{[%clk 0:00:04.3]} 51... Kg4 {[%clk 0:00:09.3]} 52. Be6+ {[%clk 0:00:04.9]}
52... Kh4 {[%clk 0:00:07.1]} 53. Rh7# {[%clk 0:00:05.8]} 1-0

[Event "Late-Titled-Tuesday-Blitz-December-26-2023"]
[Site "Chess.com"]
[Date "2023.12.26"]
[Round "11"]
[White "Slovak_fighter2000"]
[Black "DCacheiro"]
[Result "1-0"]
[WhiteElo "2492"]
[BlackElo "2520"]
[TimeControl "180+1"]
[EndTime "16:04:20 PST"]
[Termination "Slovak_fighter2000 won by resignation"]

1. d4 {[%clk 0:02:59.8]} 1... Nf6 {[%clk 0:03:00.3]} 2. Nf3 {[%clk 0:03:00]}
2... g6 {[%clk 0:03:00]} 3. Bg5 {[%clk 0:03:00]} 3... Bg7 {[%clk 0:03:00.4]} 4.
Nbd2 {[%clk 0:02:58.9]} 4... O-O {[%clk 0:03:00.7]} 5. e4 {[%clk 0:02:57.1]}
5... d6 {[%clk 0:03:01]} 6. Bd3 {[%clk 0:02:57]} 6... Nc6 {[%clk 0:03:00.9]} 7.
c3 {[%clk 0:02:57.1]} 7... e5 {[%clk 0:03:00.5]} 8. O-O {[%clk 0:02:47.8]} 8...
h6 {[%clk 0:02:59.4]} 9. Bh4 {[%clk 0:02:44.4]} 9... Qe8 {[%clk 0:02:59]} 10.
dxe5 {[%clk 0:02:43.1]} 10... Nxe5 {[%clk 0:02:56.8]} 11. Nxe5 {[%clk
0:02:43.3]} 11... dxe5 {[%clk 0:02:57.7]} 12. Nc4 {[%clk 0:02:39.2]} 12... Nh5
{[%clk 0:02:55]} 13. Bg3 {[%clk 0:02:37.2]} 13... Nxg3 {[%clk 0:02:49.8]} 14.
hxg3 {[%clk 0:02:36.3]} 14... Be6 {[%clk 0:02:50.7]} 15. Qe2 {[%clk 0:02:34.2]}
15... Rd8 {[%clk 0:02:49.5]} 16. Ne3 {[%clk 0:02:31]} 16... c6 {[%clk
0:02:43.9]} 17. Bc4 {[%clk 0:02:31.2]} 17... Qe7 {[%clk 0:02:39.3]} 18. Bxe6
{[%clk 0:02:30.7]} 18... Qxe6 {[%clk 0:02:40.2]} 19. Qc4 {[%clk 0:02:28.6]}
19... Qxc4 {[%clk 0:02:32.6]} 20. Nxc4 {[%clk 0:02:29.5]} 20... b6 {[%clk
0:02:25.9]} 21. Rfd1 {[%clk 0:02:29.1]} 21... Bf6 {[%clk 0:02:25.9]} 22. Kf1
{[%clk 0:02:29]} 22... Rfe8 {[%clk 0:02:23]} 23. Ke2 {[%clk 0:02:29.1]} 23...
Kf8 {[%clk 0:02:23.2]} 24. a4 {[%clk 0:02:26.9]} 24... Ke7 {[%clk 0:02:22.3]}
25. Rxd8 {[%clk 0:02:24.8]} 25... Rxd8 {[%clk 0:02:23.2]} 26. Rd1 {[%clk
0:02:25.1]} 26... Rxd1 {[%clk 0:02:21.8]} 27. Kxd1 {[%clk 0:02:25.2]} 27... h5
{[%clk 0:02:09.1]} 28. Ke2 {[%clk 0:02:22.8]} 28... Ke6 {[%clk 0:02:07.1]} 29.
f4 {[%clk 0:02:18.4]} 29... Bg7 {[%clk 0:01:46.4]} 30. Ne3 {[%clk 0:02:05.3]}
30... Bf8 {[%clk 0:01:40.5]} 31. f5+ {[%clk 0:02:04.6]} 31... Kd7 {[%clk
0:01:27.3]} 32. g4 {[%clk 0:01:57.5]} 32... Bh6 {[%clk 0:01:17.5]} 33. gxh5
{[%clk 0:01:42.9]} 33... gxh5 {[%clk 0:01:18.4]} 34. Nc4 {[%clk 0:01:40.9]}
34... f6 {[%clk 0:01:13]} 35. b3 {[%clk 0:01:37.1]} 35... b5 {[%clk 0:01:11.4]}
36. Nb2 {[%clk 0:01:33]} 36... Kd6 {[%clk 0:01:09.1]} 37. Nd3 {[%clk 0:01:30.4]}
37... a6 {[%clk 0:01:06.2]} 38. c4 {[%clk 0:01:29.3]} 38... Bg5 {[%clk 0:01:02]}
39. Kd1 {[%clk 0:01:22.5]} 39... Be3 {[%clk 0:00:55.6]} 40. Kc2 {[%clk
0:01:22.3]} 40... Bg1 {[%clk 0:00:55.3]} 41. cxb5 {[%clk 0:01:18.5]} 41... cxb5
{[%clk 0:00:56.2]} 42. Nb4 {[%clk 0:01:12.8]} 42... bxa4 {[%clk 0:00:43.1]} 43.
bxa4 {[%clk 0:01:09.9]} 43... Kc5 {[%clk 0:00:43.1]} 44. Kc3 {[%clk 0:01:01.2]}
44... Bd4+ {[%clk 0:00:34.8]} 45. Kb3 {[%clk 0:01:01.1]} 45... Be3 {[%clk
0:00:29.7]} 46. Nd5 {[%clk 0:00:51.8]} 46... Bg5 {[%clk 0:00:21.3]} 47. Kc3
{[%clk 0:00:48.8]} 47... a5 {[%clk 0:00:21]} 48. Nc7 {[%clk 0:00:45.2]} 48...
Bh4 {[%clk 0:00:14.3]} 49. Ne6+ {[%clk 0:00:44.9]} 49... Kc6 {[%clk 0:00:13.5]}
50. Kc4 {[%clk 0:00:45.1]} 50... Be1 {[%clk 0:00:13.2]} 51. Ng7 {[%clk
0:00:44.2]} 51... h4 {[%clk 0:00:13.2]} 52. Ne8 {[%clk 0:00:42.8]} 52... Kd7
{[%clk 0:00:10.6]} 53. Nxf6+ {[%clk 0:00:42.6]} 53... Ke7 {[%clk 0:00:11.3]} 54.
Ng4 {[%clk 0:00:40.8]} 54... Kd6 {[%clk 0:00:10.9]} 55. Nh2 {[%clk 0:00:35.6]}
55... Ke7 {[%clk 0:00:08.6]} 56. Nf3 {[%clk 0:00:35.8]} 56... Bg3 {[%clk
0:00:08.5]} 57. Kd5 {[%clk 0:00:36.1]} 57... Kf6 {[%clk 0:00:08.5]} 58. Nd2
{[%clk 0:00:32]} 58... Be1 {[%clk 0:00:07.5]} 59. Nc4 {[%clk 0:00:32]} 59... Bc3
{[%clk 0:00:08.2]} 60. Kd6 {[%clk 0:00:27.8]} 60... Bb4+ {[%clk 0:00:06.4]} 61.
Kc6 {[%clk 0:00:26.7]} 61... Bc3 {[%clk 0:00:07.3]} 62. Kd5 {[%clk 0:00:26.2]}
62... Bb4 {[%clk 0:00:02.8]} 63. Nxe5 {[%clk 0:00:26]} 1-0

[Event "Late-Titled-Tuesday-Blitz-December-26-2023"]
[Site "Chess.com"]
[Date "2023.12.26"]
[Round "11"]
[White "youngdinousaur"]
[Black "giomar27"]
[Result "1-0"]
[WhiteElo "2309"]
[BlackElo "2370"]
[TimeControl "180+1"]
[EndTime "16:04:26 PST"]
[Termination "youngdinousaur won on time"]

1. d4 {[%clk 0:03:00.9]} 1... g6 {[%clk 0:02:59]} 2. e4 {[%clk 0:03:00.4]} 2...
Bg7 {[%clk 0:02:59.1]} 3. Nc3 {[%clk 0:02:59.8]} 3... d6 {[%clk 0:02:59.3]} 4.
Nf3 {[%clk 0:03:00.1]} 4... a6 {[%clk 0:02:59.4]} 5. Bg5 {[%clk 0:02:58.7]} 5...
h6 {[%clk 0:02:57.5]} 6. Bh4 {[%clk 0:02:58.8]} 6... b5 {[%clk 0:02:57]} 7. a3
{[%clk 0:02:55.4]} 7... Nd7 {[%clk 0:02:53.2]} 8. Be2 {[%clk 0:02:54.1]} 8...
Bb7 {[%clk 0:02:51.5]} 9. O-O {[%clk 0:02:53.4]} 9... g5 {[%clk 0:02:48.2]} 10.
Bg3 {[%clk 0:02:53.1]} 10... Ngf6 {[%clk 0:02:48.9]} 11. d5 {[%clk 0:02:51.9]}
11... O-O {[%clk 0:02:44.4]} 12. Nd4 {[%clk 0:02:50.3]} 12... Nc5 {[%clk
0:02:35.9]} 13. Bd3 {[%clk 0:02:45]} 13... e6 {[%clk 0:02:15.7]} 14. dxe6 {[%clk
0:02:38.9]} 14... fxe6 {[%clk 0:02:15.1]} 15. b4 {[%clk 0:02:37.9]} 15... Nxd3
{[%clk 0:02:10.3]} 16. cxd3 {[%clk 0:02:37.7]} 16... Qe7 {[%clk 0:02:07.3]} 17.
Rc1 {[%clk 0:02:36.1]} 17... Nd7 {[%clk 0:02:03.8]} 18. Nb3 {[%clk 0:02:30.1]}
18... c5 {[%clk 0:01:51.6]} 19. Na5 {[%clk 0:02:29.7]} 19... Bc8 {[%clk
0:01:48.6]} 20. Nc6 {[%clk 0:02:28.6]} 20... Qf6 {[%clk 0:01:44.4]} 21. Bxd6
{[%clk 0:02:27.9]} 21... Rf7 {[%clk 0:01:44.7]} 22. Bxc5 {[%clk 0:02:11]} 22...
Bb7 {[%clk 0:01:42.4]} 23. Na5 {[%clk 0:02:09.3]} 23... Nxc5 {[%clk 0:01:34.1]}
24. bxc5 {[%clk 0:02:07.6]} 24... Rd8 {[%clk 0:01:31.8]} 25. c6 {[%clk
0:01:45.1]} 25... Bc8 {[%clk 0:01:31.4]} 26. Nb3 {[%clk 0:01:43]} 26... Rc7
{[%clk 0:01:22.6]} 27. Ne2 {[%clk 0:01:41]} 27... Bf8 {[%clk 0:01:17]} 28. d4
{[%clk 0:01:38]} 28... Bxa3 {[%clk 0:01:16.2]} 29. Rc2 {[%clk 0:01:37.8]} 29...
Qf8 {[%clk 0:00:53.9]} 30. d5 {[%clk 0:01:19.3]} 30... exd5 {[%clk 0:00:53.2]}
31. exd5 {[%clk 0:01:19.7]} 31... Bd6 {[%clk 0:00:53.4]} 32. Nbd4 {[%clk
0:01:02.9]} 32... Re7 {[%clk 0:00:51.7]} 33. Qd3 {[%clk 0:01:01]} 33... Rde8
{[%clk 0:00:47.7]} 34. Ng3 {[%clk 0:00:55.5]} 34... Kh8 {[%clk 0:00:39.5]} 35.
Ndf5 {[%clk 0:00:47.5]} 35... Re1 {[%clk 0:00:35.7]} 36. Qc3+ {[%clk 0:00:29.2]}
36... R1e5 {[%clk 0:00:32.6]} 37. Nxd6 {[%clk 0:00:18.7]} 37... Qxd6 {[%clk
0:00:33.5]} 38. Rd2 {[%clk 0:00:15.9]} 38... b4 {[%clk 0:00:33.2]} 39. Qd4
{[%clk 0:00:15.4]} 39... Kg8 {[%clk 0:00:33.4]} 40. Rb1 {[%clk 0:00:11.7]} 40...
a5 {[%clk 0:00:33.7]} 41. h3 {[%clk 0:00:09.6]} 41... Rf8 {[%clk 0:00:25.9]} 42.
Re2 {[%clk 0:00:06.2]} 42... Rfe8 {[%clk 0:00:23]} 43. Rxe5 {[%clk 0:00:05.8]}
43... Rxe5 {[%clk 0:00:23.9]} 44. Rd1 {[%clk 0:00:06.3]} 44... b3 {[%clk
0:00:23.8]} 45. Qc3 {[%clk 0:00:05.3]} 45... a4 {[%clk 0:00:23.6]} 46. Qa5
{[%clk 0:00:05.1]} 46... b2 {[%clk 0:00:14.3]} 47. Qxa4 {[%clk 0:00:03.8]} 47...
Rxd5 {[%clk 0:00:14.7]} 48. Qb3 {[%clk 0:00:02.5]} 48... Be6 {[%clk 0:00:14.8]}
49. Rxd5 {[%clk 0:00:01.1]} 49... b1=Q+ {[%clk 0:00:12.1]} 50. Qxb1 {[%clk
0:00:01.1]} 50... Bxd5 {[%clk 0:00:13]} 51. Kh2 {[%clk 0:00:01.6]} 51... Qxc6
{[%clk 0:00:12]} 52. Qf5 {[%clk 0:00:02.5]} 52... Bxg2 {[%clk 0:00:10.5]} 53.
Nh5 {[%clk 0:00:02.5]} 53... Bf1 {[%clk 0:00:07]} 54. Nf6+ {[%clk 0:00:02.9]}
54... Kg7 {[%clk 0:00:05.2]} 55. Qd7+ {[%clk 0:00:03.3]} 55... Qxd7 {[%clk
0:00:04.9]} 56. Nxd7 {[%clk 0:00:04.2]} 56... Bd3 {[%clk 0:00:04.4]} 57. Ne5
{[%clk 0:00:05.1]} 57... Be4 {[%clk 0:00:04.1]} 58. Kg3 {[%clk 0:00:05.5]} 58...
Bd5 {[%clk 0:00:04.1]} 59. f4 {[%clk 0:00:06]} 59... Kf6 {[%clk 0:00:03]} 60.
Nf3 {[%clk 0:00:05.5]} 1-0

[Event "Late-Titled-Tuesday-Blitz-December-26-2023"]
[Site "Chess.com"]
[Date "2023.12.26"]
[Round "11"]
[White "FREZZY23"]
[Black "tripledes"]
[Result "1/2-1/2"]
[WhiteElo "2384"]
[BlackElo "2239"]
[TimeControl "180+1"]
[EndTime "16:04:33 PST"]
[Termination "Game drawn - insufficient material"]

1. Nf3 {[%clk 0:02:59]} 1... d5 {[%clk 0:02:54.2]} 2. g3 {[%clk 0:02:58.7]} 2...
Nf6 {[%clk 0:02:53.8]} 3. c4 {[%clk 0:02:59.2]} 3... d4 {[%clk 0:02:50.5]} 4.
Bg2 {[%clk 0:02:59.7]} 4... Nc6 {[%clk 0:02:50.8]} 5. O-O {[%clk 0:03:00]} 5...
e5 {[%clk 0:02:51.1]} 6. e3 {[%clk 0:03:00]} 6... Be7 {[%clk 0:02:49.7]} 7. b3
{[%clk 0:02:59.9]} 7... O-O {[%clk 0:02:48.9]} 8. Bb2 {[%clk 0:02:59.8]} 8...
Bg4 {[%clk 0:02:47.6]} 9. exd4 {[%clk 0:02:59.3]} 9... Nxd4 {[%clk 0:02:44.2]}
10. Bxd4 {[%clk 0:02:56.7]} 10... Bxf3 {[%clk 0:02:35.7]} 11. Qxf3 {[%clk
0:02:52.8]} 11... Qxd4 {[%clk 0:02:35.5]} 12. Nc3 {[%clk 0:02:53]} 12... c6
{[%clk 0:02:35]} 13. Rad1 {[%clk 0:02:45]} 13... Rad8 {[%clk 0:02:31]} 14. Rfe1
{[%clk 0:02:44.8]} 14... Bb4 {[%clk 0:02:26.1]} 15. Ne2 {[%clk 0:02:43.1]} 15...
Qd3 {[%clk 0:02:22.5]} 16. Qxd3 {[%clk 0:02:41.2]} 16... Rxd3 {[%clk 0:02:23.4]}
17. Nc1 {[%clk 0:02:41.3]} 17... Rxd2 {[%clk 0:02:23.8]} 18. Rxd2 {[%clk
0:02:37.5]} 18... Bxd2 {[%clk 0:02:24.7]} 19. Rd1 {[%clk 0:02:38.4]} 19... Bxc1
{[%clk 0:02:20.2]} 20. Rxc1 {[%clk 0:02:39.3]} 20... Rd8 {[%clk 0:02:07.8]} 21.
b4 {[%clk 0:02:38.4]} 21... Ne8 {[%clk 0:02:05]} 22. b5 {[%clk 0:02:37.8]} 22...
cxb5 {[%clk 0:01:58.6]} 23. cxb5 {[%clk 0:02:37.6]} 23... Nd6 {[%clk 0:01:58.8]}
24. Rc7 {[%clk 0:02:32.6]} 24... Nxb5 {[%clk 0:01:51.7]} 25. Rxb7 {[%clk
0:02:32.5]} 25... a6 {[%clk 0:01:47.9]} 26. Bf1 {[%clk 0:02:30]} 26... Kf8
{[%clk 0:01:41.7]} 27. a4 {[%clk 0:02:25.3]} 27... Nc3 {[%clk 0:01:39.9]} 28.
Bc4 {[%clk 0:02:19.9]} 28... f6 {[%clk 0:01:26.5]} 29. Rf7+ {[%clk 0:02:17]}
29... Ke8 {[%clk 0:01:26.1]} 30. Rxg7 {[%clk 0:02:14.6]} 30... Nxa4 {[%clk
0:01:26.2]} 31. Bxa6 {[%clk 0:02:14.1]} 31... Nc3 {[%clk 0:01:23.5]} 32. Rxh7
{[%clk 0:02:13]} 32... Ne4 {[%clk 0:01:21.1]} 33. Rh8+ {[%clk 0:02:11.9]} 33...
Ke7 {[%clk 0:01:21.3]} 34. Rxd8 {[%clk 0:02:12.8]} 34... Kxd8 {[%clk 0:01:21.9]}
35. h4 {[%clk 0:02:08.4]} 35... Ke7 {[%clk 0:01:17.6]} 36. Kg2 {[%clk
0:02:04.1]} 36... f5 {[%clk 0:01:13.2]} 37. Bd3 {[%clk 0:02:01.3]} 37... Nd6
{[%clk 0:01:13.1]} 38. Bc2 {[%clk 0:01:57.3]} 38... Kf6 {[%clk 0:01:12.5]} 39.
f3 {[%clk 0:01:47.5]} 39... Nc4 {[%clk 0:00:51]} 40. Kf2 {[%clk 0:01:45]} 40...
Na3 {[%clk 0:00:37.7]} 41. Bd3 {[%clk 0:01:41.6]} 41... e4 {[%clk 0:00:33.7]}
42. fxe4 {[%clk 0:01:41.1]} 42... fxe4 {[%clk 0:00:34.6]} 43. Bxe4 {[%clk
0:01:41.4]} 43... Nc4 {[%clk 0:00:34.6]} 44. g4 {[%clk 0:01:36.3]} 44... Ke5
{[%clk 0:00:30.5]} 45. Bc2 {[%clk 0:01:29.5]} 45... Kf4 {[%clk 0:00:29.3]} 46.
g5 {[%clk 0:01:26.8]} 46... Ne3 {[%clk 0:00:23.2]} 47. g6 {[%clk 0:00:50.1]}
47... Ng4+ {[%clk 0:00:22.4]} 48. Kg2 {[%clk 0:00:46.6]} 48... Nf6 {[%clk
0:00:19.3]} 49. Kh3 {[%clk 0:00:38.3]} 49... Nh5 {[%clk 0:00:12.5]} 50. Bd1
{[%clk 0:00:36.8]} 50... Ng7 {[%clk 0:00:12.5]} 51. h5 {[%clk 0:00:35.8]} 51...
Kg5 {[%clk 0:00:13.1]} 52. Kg3 {[%clk 0:00:32.9]} 52... Ne6 {[%clk 0:00:13]} 53.
Kf2 {[%clk 0:00:30.5]} 53... Kh6 {[%clk 0:00:11.3]} 54. Ke3 {[%clk 0:00:28]}
54... Nf8 {[%clk 0:00:11.4]} 55. Bc2 {[%clk 0:00:26.9]} 55... Ne6 {[%clk
0:00:11.6]} 56. Ke4 {[%clk 0:00:20.1]} 56... Kxh5 {[%clk 0:00:10.6]} 57. Ke5
{[%clk 0:00:20.6]} 57... Ng7 {[%clk 0:00:10.7]} 58. Kf6 {[%clk 0:00:20.5]} 58...
Kh6 {[%clk 0:00:11.1]} 59. Bd3 {[%clk 0:00:17.7]} 59... Nh5+ {[%clk 0:00:11.1]}
60. Kf7 {[%clk 0:00:18]} 60... Ng7 {[%clk 0:00:11]} 61. Be2 {[%clk 0:00:14.7]}
61... Nf5 {[%clk 0:00:10.5]} 62. Kf6 {[%clk 0:00:15.2]} 62... Nd6 {[%clk
0:00:09.4]} 63. Bd3 {[%clk 0:00:10.4]} 63... Ne8+ {[%clk 0:00:06.9]} 64. Ke7
{[%clk 0:00:06.8]} 64... Ng7 {[%clk 0:00:06.5]} 65. Kf7 {[%clk 0:00:07]} 65...
Nh5 {[%clk 0:00:06.6]} 66. Be2 {[%clk 0:00:06.6]} 66... Ng7 {[%clk 0:00:06.2]}
67. Bg4 {[%clk 0:00:06.8]} 67... Ne8 {[%clk 0:00:05.1]} 68. Kxe8 {[%clk
0:00:02.8]} 68... Kxg6 {[%clk 0:00:05.1]} 1/2-1/2